lending/lending_fUSD_20250830
["ID","MTS","AMOUNT","RATE_DAILY","PERIOD"]
[382130230,1756513839144,-153.0,0.0003977,30]
[382130232,1756513839153,-153.0,0.0003977,30]
[382130234,1756513839162,-153.0,0.0003977,30]
[382130236,1756513839171,-153.0,0.0003977,30]
[382130238,1756513839180,-153.0,0.0003977,30]
[382130240,1756513839189,-153.0,0.0003977,30]
[382130242,1756513839199,-153.0,0.0003977,30]
[382130244,1756513839208,-153.0,0.0003977,30]
[382130246,1756513839217,-153.0,0.00039775,30]
[382130248,1756513839226,-153.0,0.00039776,30]
[382130250,1756513839235,-153.0,0.00039776,30]
[382130252,1756513839244,-153.0,0.00039776,30]
[382130254,1756513839254,-153.0,0.00039776,30]
[382130257,1756513839264,-153.0,0.00039776,30]
[382130259,1756513839274,-153.0,0.00039776,30]
[382130261,1756513839284,-153.0,0.00039776,30]
[382130262,1756513839293,-153.0,0.00039776,30]
[382130264,1756513839302,-153.0,0.00039776,30]
[382130266,1756513839312,-153.0,0.00039776,30]
[382130268,1756513839325,-370.0,0.00039779,2]
[382130269,1756513839335,-153.0,0.0003978,30]
[382130270,1756513839346,-153.0,0.00039781,30]
[382130271,1756513839358,-153.0,0.00039781,30]
[382130272,1756513839367,-153.0,0.00039781,30]
[382130273,1756513839377,-153.0,0.00039781,30]
[382130274,1756513839386,-153.0,0.00039781,30]
[382130275,1756513839396,-153.0,0.00039781,30]
[382130276,1756513839405,-153.0,0.00039781,30]
[382130277,1756513839414,-153.0,0.00039781,30]
[382130278,1756513839423,-153.0,0.00039781,30]
[382130279,1756513839433,-153.0,0.00039781,30]
[382130280,1756513839442,-4382.50367998,0.0003984,3]
[382130281,1756513839452,-214.0,0.0003985,2]
[382130283,1756513839461,-1751.72334893,0.000399,2]
[382130284,1756513839471,-302.0285855,0.00039906,15]
[382130285,1756513839482,-791.49743422,0.00039954,2]
[382130286,1756513839491,-370.0,0.00040029,7]
[382130287,1756513839501,-600.19,0.00040071,120]
[382130288,1756513839511,-412.0,0.00040105,120]
[382130289,1756513839520,-1742.26543,0.0004014,3]
[382130290,1756513839531,-1742.26543,0.0004014,3]
[382130291,1756513839540,-1742.26544,0.0004014,3]
[382130292,1756513839549,-1742.26543,0.0004014,3]
[382130293,1756513839559,-1742.26543,0.0004014,3]
[382130294,1756513839569,-1742.26544,0.0004014,3]
[382130295,1756513839578,-251.14440122,0.00040145,2]
[382130296,1756513839588,-200.0,0.00040145,2]
[382130297,1756513839598,-412.0,0.00040187,7]
[382130298,1756513839608,-15319.23353352,0.00040194,15]
[382130299,1756513839617,-791.49743422,0.00040209,2]
[382130300,1756513839627,-370.0,0.0004023,120]
[382130301,1756513839639,-1000.0,0.00040233,2]
[382130302,1756513839649,-500.55793421,0.00040245,5]
[382130303,1756513839658,-500.0,0.00040245,5]
[382130304,1756513839667,-4382.50367998,0.00040464,3]
[382130305,1756513839677,-791.49743422,0.00040468,2]
[382130306,1756513839689,-4382.50367998,0.00040538,3]
[382130307,1756513839698,-791.49743422,0.00040554,2]
[382130308,1756513839709,-1144.0,0.00040628,120]
[382130309,1756513839719,-207.4,0.00040692,2]
[382130310,1756513839728,-200.0,0.00040693,2]
[382130311,1756513839737,-502.23364817,0.00040793,5]
[382130312,1756513839746,-8765.00735996,0.00040817,3]
[382130313,1756513839755,-791.49743423,0.00040823,2]
[382130314,1756513839764,-18240.50866914,0.00040827,15]
[382130315,1756513839774,-490.27069863,0.00040862,16]
[382130316,1756513839795,-8765.00735996,0.00040863,3]
[382130317,1756513839813,-551.91458163,0.000409,53]
[382130318,1756513839833,-21912.5183999,0.00040948,3]
[382130319,1756513839852,-61355.0515197,0.0004095,3]
[382130320,1756513839868,-7649.9734682,0.0004095,3]
[382130321,1756513839886,-160.0,0.00040958,3]
[382130322,1756513839906,-380.3613284,0.00040958,3]
[382130323,1756513839926,-30677.5257599,0.00040958,3]
[382130324,1756513839945,-34424.8806069,0.00040958,3]
[382130325,1756513839964,-1000.0,0.00040958,2]
[382130326,1756513839981,-124175.73927004,0.0004096,2]
[382130327,1756513839996,-3824.9867341,0.00040963,3]
[382130328,1756513840015,-15319.23353352,0.00040967,15]
[382130329,1756513840027,-113013.1858519,0.00040968,2]
[382130330,1756513840044,-500.0,0.00040973,5]
[382130331,1756513840058,-501.44256803,0.00040973,5]
[382130332,1756513840073,-500.0,0.00040973,5]
[382130333,1756513840087,-159.86004257,0.00040973,5]
[382130334,1756513840107,-500.0,0.00040973,5]
[382130335,1756513840121,-501.4693965,0.00040973,5]
[382130337,1756513840136,-160.20013,0.00040973,5]
[382130338,1756513840151,-500.0,0.00040973,5]
[382130339,1756513840166,-500.0,0.00040973,5]
[382130340,1756513840180,-458.6255788,0.00040973,5]
[382130341,1756513840194,-501.2029408,0.00040973,5]
[382130342,1756513840210,-500.54927101,0.00040973,5]
[382130343,1756513840225,-501.27282589,0.00040973,5]
[382130344,1756513840241,-500.85784632,0.00040973,5]
[382130345,1756513840257,-500.0,0.00040973,5]
[382130346,1756513840271,-502.37575172,0.00040973,5]
[382130347,1756513840285,-500.81367737,0.00040973,5]
[382130348,1756513840299,-500.0,0.00040973,5]
[382130349,1756513840314,-501.20951731,0.00040973,5]
[382130350,1756513840329,-522.8112419,0.00040973,5]
[382130351,1756513840346,-500.19746833,0.00040973,5]
[382130352,1756513840361,-506.59319551,0.00040973,5]
[382130353,1756513840380,-500.0,0.00040973,5]
[382130354,1756513840396,-165.15801926,0.00040973,5]
[382130355,1756513840411,-500.0,0.00040973,5]
[382130356,1756513840430,-179.0,0.00041,90]
[382130357,1756513840444,-161.0,0.00041,90]
[382130358,1756513840460,-6094.92,0.00041,27]
[382130359,1756513840475,-209.0,0.0004103,2]
[382130360,1756513840490,-1000.0,0.00041095,60]
[382130361,1756513840504,-1000.0,0.00041095,60]
[382130362,1756513840519,-1000.0,0.00041095,60]
[382130363,1756513840533,-1000.0,0.00041095,60]
[382130364,1756513840549,-1000.0,0.00041095,60]
[382130365,1756513840564,-615.34015984,0.00041095,60]
[382130366,1756513840578,-490.27069863,0.00041142,17]
[382130367,1756513840592,-200.0,0.00041241,2]
[382130368,1756513840606,-669.0200004,0.00041244,2]
[382130369,1756513840621,-19124.9336705,0.00041268,3]
[382130370,1756513840636,-151.0,0.00041278,2]
[382130371,1756513840652,-1000.0,0.00041278,2]
[382130372,1756513840668,-1000.0,0.00041278,2]
[382130373,1756513840684,-12325.73577066,0.00041278,2]
[382130374,1756513840698,-1000.0,0.00041278,2]
[382130375,1756513840714,-277.35679052,0.00041278,2]
[382130376,1756513840729,-250.0,0.00041278,2]
[382130377,1756513840745,-1000.0,0.00041278,2]
[382130378,1756513840761,-250.0,0.00041278,2]
[382130379,1756513840776,-1000.0,0.00041278,2]
[382130380,1756513840790,-250.0,0.00041278,2]
[382130381,1756513840805,-1000.0,0.00041278,2]
[382130382,1756513840819,-250.0,0.00041278,2]
[382130383,1756513840834,-1000.0,0.00041278,2]
[382130384,1756513840849,-250.0,0.00041278,2]
[382130385,1756513840864,-250.0,0.00041278,2]
[382130386,1756513840879,-1000.0,0.00041278,2]
[382130387,1756513840892,-250.0,0.00041278,2]
[382130388,1756513840907,-1000.0,0.00041278,2]
[382130389,1756513840921,-250.0,0.00041278,2]
[382130390,1756513840936,-1000.0,0.00041278,2]
[382130391,1756513840950,-250.0,0.00041278,2]
[382130392,1756513840965,-1000.0,0.00041278,2]
[382130393,1756513840979,-250.0,0.00041278,2]
[382130394,1756513840994,-250.0,0.00041278,2]
[382130395,1756513841008,-721.12765535,0.00041278,2]
[382130396,1756513841022,-1000.0,0.00041278,2]
[382130397,1756513841037,-1000.0,0.00041278,2]
[382130398,1756513841051,-1000.0,0.00041278,2]
[382130399,1756513841064,-1000.0,0.00041278,2]
[382130400,1756513841079,-322.6107,0.00041278,2]
[382130401,1756513841093,-1000.0,0.00041278,2]
[382130402,1756513841109,-678.73599631,0.00041278,2]
[382130403,1756513841124,-151.0,0.00041278,2]
[382130404,1756513841134,-1000.0,0.00041278,2]
[382130405,1756513841143,-1000.0,0.00041278,2]
[382130406,1756513841152,-1000.0,0.00041278,2]
[382130407,1756513841162,-1000.0,0.00041278,2]
[382130408,1756513841171,-151.0,0.00041278,2]
[382130409,1756513841181,-1000.0,0.00041278,2]
[382130410,1756513841190,-1000.0,0.00041278,2]
[382130411,1756513841200,-1000.0,0.00041278,2]
[382130412,1756513841210,-1020.38360297,0.00041278,2]
[382130413,1756513841219,-1000.0,0.00041278,2]
[382130414,1756513841519,-1000.0,0.00041278,2]
[382130415,1756513841550,-1000.0,0.00041278,2]
[382130416,1756513841578,-1000.0,0.00041278,2]
[382130417,1756513841588,-1000.0,0.00041278,2]
[382130418,1756513841598,-151.0,0.00041278,2]
[382130419,1756513841607,-1000.0,0.00041278,2]
[382130420,1756513841616,-1000.0,0.00041278,2]
[382130421,1756513841626,-151.0,0.00041278,2]
[382130422,1756513841636,-1000.0,0.00041278,2]
[382130423,1756513841648,-154.32044985,0.00041278,2]
[382130424,1756513841658,-1000.0,0.00041278,2]
[382130425,1756513841667,-367.17025592,0.00041278,2]
[382130426,1756513841676,-500.0,0.00041278,2]
[382130427,1756513841686,-385.25762118,0.00041278,2]
[382130428,1756513841696,-500.0,0.00041278,2]
[382130429,1756513841705,-500.0,0.00041278,2]
[382130430,1756513841714,-500.0,0.00041278,2]
[382130431,1756513841724,-418.65518267,0.00041278,2]
[382130432,1756513841733,-160.0,0.00041278,2]
[382130433,1756513841742,-500.0,0.00041307,2]
[382130434,1756513841751,-3824.9867341,0.00041311,3]
[382130435,1756513841761,-3824.9867341,0.00041323,3]
[382130436,1756513841770,-156.587,0.00041333,2]
[382130437,1756513841779,-12781.78799418,0.00041333,2]
[382130438,1756513841789,-3824.9867341,0.00041354,3]
[382130439,1756513841799,-152.0,0.00041364,14]
[382130440,1756513841808,-154.0,0.00041364,14]
[382130441,1756513841817,-154.0,0.00041364,14]
[382130442,1756513841827,-154.0,0.00041364,14]
[382130443,1756513841836,-154.0,0.00041364,14]
[382130444,1756513841846,-154.0,0.00041364,14]
[382130445,1756513841855,-200.0,0.00041368,7]
[382130446,1756513841864,-316.95732304,0.00041369,7]
[382130447,1756513841875,-179.0,0.0004137,90]
[382130448,1756513841884,-19124.9336705,0.0004137,3]
[382130449,1756513841894,-566.44130875,0.00041373,10]
[382130450,1756513841903,-3824.9867341,0.00041378,3]
[382130451,1756513841913,-1000.0,0.00041379,2]
[382130452,1756513841923,-55645.014575,0.0004138,2]
[382130453,1756513841932,-215.17634865,0.0004138,30]
[382130454,1756513841942,-1768.23595952,0.0004138,30]
[382130455,1756513841951,-162.380719,0.00041388,2]
[382130456,1756513841960,-13254.71414996,0.00041388,2]
[382130457,1756513841970,-490.27069863,0.00041421,17]
[382130458,1756513841980,-3824.9867341,0.00041433,3]
[382130459,1756513841990,-168.3888056,0.00041443,2]
[382130460,1756513842000,-13745.13857351,0.00041443,2]
[382130461,1756513842010,-3824.9867341,0.00041475,3]
[382130462,1756513842020,-3824.9867341,0.00041485,3]
[382130463,1756513842030,-3824.9867341,0.00041488,3]
[382130464,1756513842040,-7649.9734682,0.00041495,3]
[382130465,1756513842049,-174.61919141,0.00041498,2]
[382130466,1756513842062,-14253.70870073,0.00041498,2]
[382130467,1756513842071,-22949.9204046,0.00041505,3]
[382130468,1756513842081,-151.0,0.0004151,120]
[382130469,1756513842090,-1515.412747,0.0004151,120]
[382130470,1756513842099,-1515.412747,0.0004151,120]
[382130471,1756513842108,-1515.412747,0.0004151,120]
[382130472,1756513842118,-151.0,0.0004151,60]
[382130473,1756513842127,-151.0,0.0004151,120]
[382130474,1756513842137,-151.0,0.0004151,60]
[382130475,1756513842146,-151.0,0.0004151,120]
[382130476,1756513842155,-152.944417,0.0004151,120]
[382130477,1756513842165,-1515.412747,0.0004151,120]
[382130478,1756513842174,-151.0,0.0004151,120]
[382130479,1756513842184,-151.0,0.0004151,120]
[382130480,1756513842194,-202.067811,0.0004151,120]
[382130481,1756513842204,-151.0,0.0004151,120]
[382130482,1756513842213,-202.067811,0.0004151,120]
[382130483,1756513842223,-151.0,0.0004151,120]
[382130484,1756513842231,-151.0,0.0004151,120]
[382130485,1756513842241,-202.067811,0.0004151,120]
[382130486,1756513842250,-151.0,0.0004151,120]
[382130487,1756513842259,-151.0,0.0004151,120]
[382130488,1756513842268,-202.067811,0.0004151,120]
[382130489,1756513842277,-151.0,0.0004151,120]
[382130490,1756513842286,-151.0,0.0004151,120]
[382130491,1756513842296,-151.0,0.0004151,120]
[382130492,1756513842305,-151.0,0.0004151,120]
[382130493,1756513842314,-151.0,0.0004151,120]
[382130494,1756513842324,-151.0,0.0004151,120]
[382130495,1756513842334,-191.414772,0.0004151,120]
[382130496,1756513842343,-170.98676,0.0004151,120]
[382130497,1756513842351,-191.414772,0.0004151,120]
[382130498,1756513842361,-151.0,0.0004151,120]
[382130499,1756513842371,-151.0,0.0004151,120]
[382130500,1756513842398,-191.414772,0.0004151,120]
[382130501,1756513842408,-191.414772,0.0004151,120]
[382130502,1756513842418,-151.0,0.0004151,120]
[382130503,1756513842427,-151.0,0.0004151,120]
[382130504,1756513842435,-151.0,0.0004151,120]
[382130505,1756513842445,-151.0,0.0004151,120]
[382130506,1756513842455,-151.0,0.0004151,120]
[382130507,1756513842464,-155.687367,0.0004151,120]
[382130508,1756513842474,-155.687367,0.0004151,120]
[382130509,1756513842483,-151.0,0.0004151,120]
[382130510,1756513842492,-155.687367,0.0004151,120]
[382130511,1756513842501,-151.0,0.0004151,120]
[382130512,1756513842511,-151.0,0.0004151,120]
[382130513,1756513842520,-155.687367,0.0004151,120]
[382130514,1756513842530,-151.0,0.0004151,120]
[382130515,1756513842539,-151.0,0.0004151,120]
[382130516,1756513842548,-151.0,0.0004151,120]
[382130517,1756513842558,-151.0,0.0004151,120]
[382130518,1756513842568,-151.0,0.0004151,120]
[382130519,1756513842578,-151.0,0.0004151,120]
[382130520,1756513842587,-151.0,0.0004151,120]
[382130521,1756513842596,-151.0,0.0004151,120]
[382130524,1756513842605,-151.0,0.0004151,120]
[382130525,1756513842615,-151.0,0.0004151,120]
[382130526,1756513842627,-151.0,0.0004151,120]
[382130527,1756513842639,-151.0,0.0004151,120]
[382130528,1756513842651,-151.0,0.0004151,2]
[382130529,1756513842660,-151.0,0.0004151,120]
[382130530,1756513842670,-151.0,0.0004151,120]
[382130531,1756513842680,-151.0,0.0004151,2]
[382130532,1756513842691,-151.0,0.0004151,2]
[382130533,1756513842700,-3824.9867341,0.00041511,3]
[382130534,1756513842710,-74051.00046765,0.00041515,30]
[382130535,1756513842720,-1002.80402989,0.00041521,10]
[382130536,1756513842729,-533.53424479,0.00041521,10]
[382130537,1756513842739,-500.0,0.00041521,10]
[382130538,1756513842748,-3824.9867341,0.00041543,3]
[382130539,1756513842758,-436.0,0.0004155,120]
[382130540,1756513842767,-181.08010149,0.00041553,2]
[382130541,1756513842776,-14781.09592266,0.00041553,2]
[382130542,1756513842785,-500.0,0.00041573,10]
[382130543,1756513842795,-3824.9867341,0.00041598,3]
[382130544,1756513842804,-187.78006525,0.00041608,2]
[382130545,1756513842814,-15327.9964718,0.00041608,2]
[382130546,1756513842823,-3824.9867341,0.00041633,3]
[382130547,1756513842833,-168.0,0.00041647,7]
[382130548,1756513842843,-3824.9867341,0.00041653,3]
[382130549,1756513842852,-186.9,0.00041655,14]
[382130550,1756513842861,-194.72792766,0.00041663,2]
[382130551,1756513842870,-15895.13234125,0.00041663,2]
[382130552,1756513842880,-3824.9867341,0.00041687,3]
[382130553,1756513842889,-215.763142,0.0004169,120]
[382130554,1756513842899,-151.0,0.0004169,120]
[382130555,1756513842908,-151.0,0.0004169,120]
[382130556,1756513842917,-215.763142,0.0004169,120]
[382130557,1756513842926,-151.0,0.0004169,120]
[382130558,1756513842936,-215.763142,0.0004169,120]
[382130559,1756513842945,-215.763142,0.0004169,120]
[382130560,1756513842955,-151.0,0.0004169,120]
[382130561,1756513842964,-151.0,0.0004169,120]
[382130562,1756513842974,-151.0,0.0004169,120]
[382130563,1756513842984,-489.579681,0.0004169,120]
[382130564,1756513842994,-151.0,0.0004169,120]
[382130565,1756513843004,-151.0,0.0004169,120]
[382130566,1756513843014,-489.579681,0.0004169,120]
[382130567,1756513843024,-151.0,0.0004169,120]
[382130568,1756513843035,-218.951684,0.0004169,120]
[382130569,1756513843045,-489.579681,0.0004169,120]
[382130570,1756513843055,-218.951684,0.0004169,120]
[382130571,1756513843065,-489.579681,0.0004169,120]
[382130572,1756513843077,-218.951684,0.0004169,120]
[382130573,1756513843086,-218.951684,0.0004169,120]
[382130574,1756513843096,-151.0,0.0004169,120]
[382130575,1756513843106,-331.887595,0.0004169,120]
[382130576,1756513843118,-151.0,0.0004169,120]
[382130577,1756513843131,-331.887595,0.0004169,120]
[382130578,1756513843141,-151.0,0.0004169,120]
[382130579,1756513843151,-331.887595,0.0004169,120]
[382130580,1756513843162,-331.887595,0.0004169,120]
[382130582,1756513843171,-151.0,0.0004169,120]
[382130584,1756513843180,-151.0,0.0004169,120]
[382130586,1756513843190,-151.0,0.0004169,120]
[382130588,1756513843199,-151.0,0.0004169,120]
[382130590,1756513843209,-635.796399,0.0004169,120]
[382130591,1756513843218,-635.796399,0.0004169,120]
[382130592,1756513843228,-246.52152,0.0004169,120]
[382130593,1756513843237,-635.796399,0.0004169,120]
[382130594,1756513843246,-246.52152,0.0004169,120]
[382130595,1756513843256,-635.796399,0.0004169,120]
[382130596,1756513843264,-246.52152,0.0004169,120]
[382130597,1756513843274,-246.52152,0.0004169,120]
[382130598,1756513843283,-151.0,0.0004169,120]
[382130599,1756513843292,-1144.0,0.00041694,7]
[382130600,1756513843303,-1425.0,0.00041697,2]
[382130601,1756513843311,-542.65356923,0.00041701,4]
[382130602,1756513843321,-3824.9867341,0.00041708,3]
[382130603,1756513843331,-201.93286099,0.00041718,2]
[382130604,1756513843342,-16483.25223788,0.00041718,2]
[382130605,1756513843352,-168.0,0.0004173,120]
[382130606,1756513843369,-15319.23353352,0.0004174,15]
[382130607,1756513843380,-166.82280498,0.00041744,120]
[382130608,1756513843392,-7649.9734682,0.00041758,3]
[382130609,1756513843401,-3824.9867341,0.00041763,3]
[382130610,1756513843411,-209.40437684,0.00041773,2]
[382130611,1756513843425,-17093.13257068,0.00041773,2]
[382130612,1756513843435,-3824.9867341,0.00041775,3]
[382130613,1756513843446,-3824.9867341,0.00041782,3]
[382130614,1756513843455,-200.0,0.00041789,2]
[382130615,1756513843465,-151.0,0.00041826,2]
[382130616,1756513843474,-151.0,0.00041826,2]
[382130617,1756513843484,-151.0,0.00041828,120]
[382130618,1756513843493,-468.072356,0.00041828,120]
[382130619,1756513843502,-468.072356,0.00041828,120]
[382130620,1756513843511,-1099.385254,0.00041828,120]
[382130621,1756513843520,-468.072356,0.00041828,120]
[382130622,1756513843530,-1099.385254,0.00041828,120]
[382130623,1756513843539,-468.072356,0.00041828,120]
[382130624,1756513843548,-1099.385254,0.00041828,120]
[382130625,1756513843557,-1099.385254,0.00041828,120]
[382130626,1756513843566,-151.0,0.00041828,120]
[382130627,1756513843577,-151.0,0.00041828,120]
[382130628,1756513843586,-151.0,0.00041828,120]
[382130629,1756513843595,-151.0,0.00041828,120]
[382130630,1756513843605,-151.0,0.00041828,120]
[382130631,1756513843614,-151.0,0.00041828,120]
[382130632,1756513843624,-151.0,0.00041828,120]
[382130633,1756513843633,-151.0,0.00041828,120]
[382130634,1756513843646,-310.328646,0.00041828,120]
[382130635,1756513843655,-310.328646,0.00041828,120]
[382130636,1756513843664,-310.328646,0.00041828,120]
[382130637,1756513843673,-344.920183,0.00041828,30]
[382130638,1756513843684,-151.0,0.00041828,30]
[382130639,1756513843693,-151.0,0.00041828,120]
[382130640,1756513843702,-151.0,0.00041828,120]
[382130641,1756513843713,-310.328646,0.00041828,120]
[382130642,1756513843723,-344.920183,0.00041828,30]
[382130643,1756513843736,-151.0,0.00041828,120]
[382130644,1756513843748,-151.0,0.00041828,30]
[382130645,1756513843758,-344.920183,0.00041828,30]
[382130646,1756513843767,-151.0,0.00041828,120]
[382130647,1756513843776,-151.0,0.00041828,30]
[382130648,1756513843786,-152.066406,0.00041828,120]
[382130649,1756513843795,-344.920183,0.00041828,30]
[382130650,1756513843804,-206.190504,0.00041828,120]
[382130651,1756513843813,-247.369312,0.00041828,30]
[382130652,1756513843823,-189.986505,0.00041828,120]
[382130653,1756513843832,-189.986505,0.00041828,120]
[382130654,1756513843842,-189.986505,0.00041828,120]
[382130655,1756513843852,-189.986505,0.00041828,120]
[382130656,1756513843861,-151.0,0.00041828,120]
[382130657,1756513843871,-151.0,0.00041828,120]
[382130658,1756513843880,-151.0,0.00041828,120]
[382130659,1756513843889,-151.0,0.00041828,120]
[382130660,1756513843899,-151.0,0.00041828,120]
[382130661,1756513843908,-178.565392,0.00041828,120]
[382130662,1756513843918,-151.0,0.00041828,120]
[382130663,1756513843928,-151.0,0.00041828,120]
[382130664,1756513843938,-151.0,0.00041828,120]
[382130665,1756513843947,-307.16060129,0.00041828,2]
[382130666,1756513843957,-17725.5784758,0.00041828,2]
[382130667,1756513843966,-1425.0,0.00041887,2]
[382130668,1756513843976,-164.93875507,0.00041912,16]
[382130669,1756513843986,-1425.0,0.00041941,2]
[382130670,1756513843995,-150.0,0.00041958,14]
[382130671,1756513844004,-150.0,0.00041961,2]
[382130672,1756513844014,-1000.0,0.00041983,14]
[382130673,1756513844023,-1425.0,0.00041984,2]
[382130674,1756513844033,-1425.0,0.00041994,2]
[382130675,1756513844042,-20000.0,0.00042,2]
[382130676,1756513844052,-1000.0,0.00042021,14]
[382130677,1756513844061,-1000.0,0.00042026,14]
[382130678,1756513844071,-300.0,0.00042074,2]
[382130679,1756513844080,-1425.0,0.00042097,2]
[382130680,1756513844089,-1425.0,0.00042098,2]
[382130681,1756513844098,-157.96,0.0004215,2]
[382130682,1756513844107,-18240.50866914,0.00042185,15]
[382130683,1756513844116,-1154.39436486,0.00042193,2]
[382130684,1756513844125,-150.0,0.00042206,14]
[382130685,1756513844134,-205.0,0.0004222,2]
[382130686,1756513844143,-7263.3287813,0.00042251,2]
[382130687,1756513844153,-436.0,0.0004228,2]
[382130688,1756513844163,-208.0,0.0004233,2]
[382130689,1756513844172,-200.0,0.00042337,2]
[382130690,1756513844181,-151.0,0.00042374,2]
[382130691,1756513844190,-151.0,0.00042374,2]
[382130692,1756513844200,-152.0,0.000424,120]
[382130693,1756513844210,-539.0,0.00042462,7]
[382130694,1756513844220,-168.0,0.00042464,2]
[382130695,1756513844229,-1612.0,0.00042487,2]
[382130696,1756513844239,-15319.23353352,0.00042513,15]
[382130697,1756513844249,-542.65356918,0.00042568,8]
[382130698,1756513844258,-287.61899177,0.00042647,2]
[382130699,1756513844268,-334.5472959,0.00042647,2]
[382130700,1756513844277,-160.0,0.00042647,2]
[382130701,1756513844286,-152.0,0.00042723,4]
[382130702,1756513844295,-200.0,0.00042885,2]
[382130703,1756513844304,-151.0,0.00042922,2]
[382130704,1756513844313,-151.0,0.00042922,2]
[382130705,1756513844322,-1256.0,0.0004296,2]
[382130706,1756513844331,-21116.0,0.0004296,2]
[382130707,1756513844340,-718.0,0.0004296,2]
[382130708,1756513844349,-168.0,0.00043127,7]
[382130709,1756513844358,-168.0,0.00043137,2]
[382130710,1756513844367,-179.0,0.00043151,90]
[382130711,1756513844376,-161.0,0.00043151,90]
[382130712,1756513844385,-177.758641,0.0004317,120]
[382130713,1756513844394,-1515.412747,0.0004317,120]
[382130714,1756513844403,-1515.412747,0.0004317,120]
[382130715,1756513844412,-1515.412747,0.0004317,120]
[382130716,1756513844421,-151.0,0.0004317,60]
[382130717,1756513844430,-151.0,0.0004317,120]
[382130718,1756513844439,-151.0,0.0004317,120]
[382130719,1756513844449,-1515.412747,0.0004317,120]
[382130720,1756513844458,-151.0,0.0004317,120]
[382130721,1756513844467,-151.0,0.0004317,120]
[382130722,1756513844476,-202.067811,0.0004317,120]
[382130723,1756513844485,-151.0,0.0004317,120]
[382130724,1756513844496,-202.067811,0.0004317,120]
[382130725,1756513844505,-151.0,0.0004317,120]
[382130726,1756513844514,-151.0,0.0004317,120]
[382130727,1756513844523,-202.067811,0.0004317,120]
[382130728,1756513844532,-207.728548,0.0004317,120]
[382130729,1756513844541,-151.0,0.0004317,120]
[382130730,1756513844703,-202.067811,0.0004317,120]
[382130731,1756513844719,-261.056338,0.0004317,120]
[382130732,1756513844730,-151.0,0.0004317,120]
[382130733,1756513844739,-151.0,0.0004317,120]
[382130734,1756513844749,-151.0,0.0004317,120]
[382130735,1756513844758,-151.0,0.0004317,120]
[382130736,1756513844768,-151.0,0.0004317,120]
[382130737,1756513844778,-191.414772,0.0004317,120]
[382130738,1756513844788,-191.414772,0.0004317,120]
[382130739,1756513844797,-151.0,0.0004317,120]
[382130740,1756513844807,-151.0,0.0004317,120]
[382130741,1756513844816,-191.414772,0.0004317,120]
[382130742,1756513844826,-191.414772,0.0004317,120]
[382130743,1756513844835,-151.0,0.0004317,120]
[382130744,1756513844845,-151.0,0.0004317,120]
[382130745,1756513844854,-151.0,0.0004317,120]
[382130746,1756513844863,-155.687367,0.0004317,120]
[382130747,1756513844873,-155.687367,0.0004317,120]
[382130748,1756513844882,-155.687367,0.0004317,120]
[382130749,1756513844891,-155.687367,0.0004317,120]
[382130750,1756513844900,-62012.0929,0.00043171,2]
[382130751,1756513844910,-164.93875507,0.00043241,18]
[382130752,1756513844920,-151.49626,0.00043281,120]
[382130753,1756513844930,-151.0,0.00043281,120]
[382130754,1756513844939,-151.0,0.00043281,120]
[382130755,1756513844949,-260.154713,0.00043281,120]
[382130756,1756513844958,-151.0,0.00043281,120]
[382130757,1756513844968,-260.154713,0.00043281,120]